fUST/lending_fUST_20250828
["ID","MTS","AMOUNT","RATE_DAILY","PERIOD"]
[381802029,1756354232767,-500.0,0.00020206,2]
[381802031,1756354232777,-500.0,0.00020206,2]
[381802033,1756354232787,-500.0,0.00020206,2]
[381802035,1756354232797,-500.0,0.00020206,2]
[381802037,1756354232807,-500.0,0.00020206,2]
[381802039,1756354232820,-500.0,0.00020206,2]
[381802041,1756354232829,-500.0,0.00020206,2]
[381802043,1756354232839,-500.0,0.00020206,2]
[381802045,1756354232849,-500.0,0.00020206,2]
[381802048,1756354232859,-500.0,0.00020206,2]
[381802050,1756354232871,-500.0,0.00020206,2]
[381802052,1756354232880,-500.0,0.00020206,2]
[381802054,1756354232889,-500.0,0.00020206,2]
[381802056,1756354232898,-500.0,0.00020206,2]
[381802058,1756354232907,-455.22210425,0.00020206,2]
[381802060,1756354232917,-500.0,0.00020206,2]
[381802062,1756354232926,-500.0,0.00020206,2]
[381802063,1756354232934,-500.0,0.00020206,2]
[381802065,1756354232944,-500.0,0.00020206,2]
[381802067,1756354232956,-500.0,0.00020206,2]
[381802069,1756354232966,-500.0,0.00020206,2]
[381802071,1756354232975,-500.0,0.00020206,2]
[381802073,1756354232985,-500.0,0.00020206,2]
[381802075,1756354232994,-500.0,0.00020206,2]
[381802077,1756354233003,-500.0,0.00020206,2]
[381802079,1756354233012,-500.0,0.00020206,2]
[381802081,1756354233021,-500.0,0.00020206,2]
[381802083,1756354233031,-500.0,0.00020206,2]
[381802085,1756354233043,-500.0,0.00020206,2]
[381802087,1756354233052,-500.0,0.00020206,2]
[381802089,1756354233062,-500.0,0.00020206,2]
[381802091,1756354233071,-500.0,0.00020206,2]
[381802093,1756354233081,-500.0,0.00020206,2]
[381802095,1756354233091,-500.0,0.00020206,2]
[381802097,1756354233099,-500.0,0.00020206,2]
[381802099,1756354233109,-500.0,0.00020206,2]
[381802101,1756354233119,-500.0,0.00020206,2]
[381802103,1756354233128,-500.0,0.00020206,2]
[381802105,1756354233137,-500.0,0.00020206,2]
[381802107,1756354233147,-113.35764255,0.00020206,2]
[381802318,1756354237905,-304.53234946,0.00020205,2]
[381802323,1756354238012,-176.71479611,0.00020205,2]
[381802324,1756354238024,-386.64235745,0.00020206,2]
[381802325,1756354238033,-500.0,0.00020206,2]
[381802326,1756354238042,-500.0,0.00020206,2]
[381802327,1756354238052,-500.0,0.00020206,2]
[381802328,1756354238061,-500.0,0.00020206,2]
[381802329,1756354238071,-500.0,0.00020206,2]
[381802330,1756354238080,-500.0,0.00020206,2]
[381802331,1756354238090,-444.40500429,0.00020206,2]
[381802332,1756354238099,-500.0,0.00020206,2]
[381802333,1756354238108,-250.0,0.00020206,2]
[381802334,1756354238119,-500.0,0.00020206,2]
[381802335,1756354238128,-500.0,0.00020206,2]
[381802336,1756354238138,-500.0,0.00020206,2]
[381802337,1756354238148,-500.0,0.00020206,2]
[381802338,1756354238158,-500.0,0.00020206,2]
[381802339,1756354238167,-500.0,0.00020206,2]
[381802340,1756354238177,-500.0,0.00020206,2]
[381802341,1756354238187,-500.0,0.00020206,2]
[381802342,1756354238197,-500.0,0.00020206,2]
[381802343,1756354238206,-500.0,0.00020206,2]
[381802344,1756354238216,-500.0,0.00020206,2]
[381802345,1756354238225,-500.0,0.00020206,2]
[381802346,1756354238234,-500.0,0.00020206,2]
[381802347,1756354238244,-500.0,0.00020206,2]
[381802348,1756354238254,-500.0,0.00020206,2]
[381802349,1756354238263,-500.0,0.00020206,2]
[381802350,1756354238272,-500.0,0.00020206,2]
[381802351,1756354238281,-500.0,0.00020206,2]
[381802352,1756354238291,-500.0,0.00020206,2]
[381802353,1756354238300,-500.0,0.00020206,2]
[381802354,1756354238309,-500.0,0.00020206,2]
[381802355,1756354238319,-500.0,0.00020206,2]
[381802356,1756354238330,-500.0,0.00020206,2]
[381802357,1756354238339,-500.0,0.00020206,2]
[381802358,1756354238348,-500.0,0.00020206,2]
[381802359,1756354238358,-500.0,0.00020206,2]
[381802360,1756354238367,-500.0,0.00020206,2]
[381802361,1756354238376,-500.0,0.00020206,2]
[381802362,1756354238386,-500.0,0.00020206,2]
[381802363,1756354238396,-500.0,0.00020206,2]
[381802364,1756354238406,-500.0,0.00020206,2]
[381802365,1756354238416,-500.0,0.00020206,2]
[381802366,1756354238426,-500.0,0.00020206,2]
[381802367,1756354238435,-500.0,0.00020206,2]
[381802368,1756354238445,-500.0,0.00020206,2]
[381802369,1756354238455,-50000.0,0.00020206,2]
[381802370,1756354238465,-1200.0,0.00020207,2]
[381802371,1756354238474,-480.0,0.00020207,2]
[381802372,1756354238483,-839.61,0.00020207,2]
[381802373,1756354238493,-1332.26,0.00020207,2]
[381802374,1756354238502,-2601.62,0.00020207,2]
[381802375,1756354238511,-2457.28,0.00020207,2]
[381802376,1756354238521,-480.0,0.00020207,2]
[381802377,1756354238530,-480.0,0.00020207,2]
[381802378,1756354238540,-480.0,0.00020207,2]
[381802379,1756354238550,-169.33814378,0.00020209,2]
[381802380,1756354238560,-1801.74,0.00020211,2]
[381802381,1756354238569,-574.28,0.00020211,2]
[381802382,1756354238579,-541.94,0.00020211,2]
[381802383,1756354238588,-480.0,0.00020211,2]
[381802384,1756354238597,-4024.39,0.00020211,2]
[381802385,1756354238607,-1149.88,0.00020211,2]
[381802386,1756354238616,-506.3,0.00020211,2]
[381802387,1756354238625,-1494.62,0.00020211,2]
[381802388,1756354238635,-679.99,0.00020211,2]
[381802389,1756354238644,-1117.19,0.00020211,2]
[381802390,1756354238653,-745.84,0.00020211,2]
[381802391,1756354238662,-1364.49,0.00020211,2]
[381802392,1756354238672,-533.41,0.00020211,2]
[381802393,1756354238681,-684.42,0.00020211,2]
[381802394,1756354238691,-480.0,0.00020211,2]
[381802395,1756354238701,-480.0,0.00020211,2]
[381802396,1756354238710,-1149.93,0.00020211,2]
[381802397,1756354238720,-1597.8,0.00020211,2]
[381802398,1756354238732,-1768.21,0.00020211,2]
[381802399,1756354238742,-480.0,0.00020211,2]
[381802400,1756354238752,-500.0,0.00020212,2]
[381802401,1756354238762,-647.35,0.00020291,3]
[381802402,1756354238771,-601.11,0.00020291,3]
[381802403,1756354238783,-483.35,0.00020291,3]
[381802404,1756354238792,-241.67,0.00020291,3]
[381802405,1756354238802,-3770.46067456,0.00020301,2]
[381802406,1756354238812,-19839.70169305,0.00020301,2]
[381802407,1756354238821,-300.56,0.00020305,3]
[381802408,1756354238831,-966.7,0.00020305,3]
[381802409,1756354238839,-2901.82172578,0.00020309,2]
[381802410,1756354238848,-161.065,0.00020315,2]
[381802411,1756354238858,-480.0,0.00020315,2]
[381802412,1756354238867,-480.0,0.00020315,2]
[381802413,1756354238876,-480.0,0.00020315,2]
[381802414,1756354238885,-480.0,0.00020315,2]
[381802415,1756354238895,-480.0,0.00020315,2]
[381802416,1756354238904,-876.11,0.00020315,2]
[381802417,1756354238913,-480.0,0.00020315,2]
[381802418,1756354238923,-480.0,0.00020315,2]
[381802419,1756354238932,-480.0,0.00020315,2]
[381802420,1756354238941,-480.0,0.00020315,2]
[381802421,1756354238950,-480.0,0.00020315,2]
[381802422,1756354238959,-481.88420917,0.00020315,2]
[381802423,1756354238968,-500.71,0.00020315,2]
[381802424,1756354238979,-480.0,0.00020315,2]
[381802425,1756354238988,-480.0,0.00020315,2]
[381802426,1756354238997,-480.0,0.00020315,2]
[381802427,1756354239007,-480.0,0.00020315,2]
[381802428,1756354239016,-378.73853728,0.00020315,2]
[381802429,1756354239025,-480.0,0.00020315,2]
[381802430,1756354239035,-480.0,0.00020315,2]
[381802431,1756354239044,-700.57,0.00020315,2]
[381802432,1756354239053,-480.0,0.00020315,2]
[381802433,1756354239062,-480.0,0.00020315,2]
[381802434,1756354239071,-480.0,0.00020315,2]
[381802435,1756354239080,-480.0,0.00020315,2]
[381802436,1756354239092,-480.0,0.00020315,2]
[381802437,1756354239101,-480.0,0.00020315,2]
[381802438,1756354239111,-550.49,0.00020315,2]
[381802439,1756354239119,-480.0,0.00020315,2]
[381802440,1756354239129,-480.0,0.00020315,2]
[381802441,1756354239138,-480.0,0.00020315,2]
[381802442,1756354239147,-480.0,0.00020315,2]
[381802443,1756354239156,-480.0,0.00020315,2]
[381802444,1756354239166,-693.97,0.00020315,2]
[381802445,1756354239175,-480.0,0.00020315,2]
[381802446,1756354239184,-480.0,0.00020315,2]
[381802447,1756354239194,-480.0,0.00020315,2]
[381802448,1756354239203,-480.0,0.00020315,2]
[381802449,1756354239212,-531.47471943,0.00020315,2]
[381802450,1756354239222,-480.0,0.00020315,2]
[381802451,1756354239231,-480.0,0.00020315,2]
[381802452,1756354239240,-1000.4,0.00020315,2]
[381802453,1756354239249,-480.0,0.00020315,2]
[381802454,1756354239259,-480.0,0.00020315,2]
[381802455,1756354239268,-480.0,0.00020315,2]
[381802456,1756354239277,-480.0,0.00020315,2]
[381802457,1756354239287,-1505.27,0.00020315,2]
[381802458,1756354239296,-480.0,0.00020315,2]
[381802459,1756354239305,-480.0,0.00020315,2]
[381802460,1756354239314,-527.65,0.00020315,2]
[381802461,1756354239324,-883.44,0.00020315,2]
[381802462,1756354239333,-480.0,0.00020315,2]
[381802463,1756354239343,-480.0,0.00020315,2]
[381802464,1756354239353,-480.0,0.00020315,2]
[381802465,1756354239362,-533.24,0.00020315,2]
[381802466,1756354239371,-480.0,0.00020315,2]
[381802467,1756354239381,-532.29,0.00020315,2]
[381802468,1756354239390,-480.0,0.00020315,2]
[381802469,1756354239400,-480.0,0.00020315,2]
[381802470,1756354239409,-480.0,0.00020315,2]
[381802471,1756354239419,-519.57,0.00020315,2]
[381802472,1756354239428,-571.49,0.00020315,2]
[381802473,1756354239438,-480.0,0.00020315,2]
[381802474,1756354239447,-506.74,0.00020315,2]
[381802475,1756354239457,-480.0,0.00020315,2]
[381802476,1756354239467,-480.0,0.00020315,2]
[381802477,1756354239476,-480.0,0.00020315,2]
[381802478,1756354239485,-480.0,0.00020315,2]
[381802479,1756354239495,-480.0,0.00020315,2]
[381802480,1756354239504,-480.0,0.00020315,2]
[381802481,1756354239514,-480.0,0.00020315,2]
[381802482,1756354239523,-500.0,0.00020315,2]
[381802483,1756354239533,-480.0,0.00020315,2]
[381802484,1756354239543,-480.0,0.00020315,2]
[381802485,1756354239552,-672.57,0.00020315,2]
[381802487,1756354239562,-480.0,0.00020315,2]
[381802489,1756354239571,-677.51,0.00020315,2]
[381802490,1756354239580,-480.0,0.00020315,2]
[381802491,1756354239590,-480.0,0.00020315,2]
[381802492,1756354239599,-480.0,0.00020315,2]
[381802494,1756354239609,-480.0,0.00020315,2]
[381802496,1756354239618,-699.12,0.00020315,2]
[381802498,1756354239628,-480.0,0.00020315,2]
[381802499,1756354239638,-480.0,0.00020315,2]
[381802501,1756354239647,-533.47,0.00020315,2]
[381802503,1756354239657,-480.0,0.00020315,2]
[381802505,1756354239666,-480.0,0.00020315,2]
[381802507,1756354239675,-500.0,0.00020315,2]
[381802509,1756354239684,-500.0,0.00020315,2]
[381802510,1756354239694,-616.26136832,0.00020315,2]
[381802512,1756354239704,-480.0,0.00020315,2]
[381802515,1756354239715,-767.24,0.00020315,2]
[381802516,1756354239727,-480.0,0.00020315,2]
[381802518,1756354239740,-480.0,0.00020315,2]
[381802520,1756354239750,-1147.27,0.00020315,2]
[381802522,1756354239760,-480.0,0.00020315,2]
[381802524,1756354239771,-505.67,0.00020315,2]
[381802526,1756354239780,-480.0,0.00020315,2]
[381802528,1756354239791,-1103.23,0.00020315,2]
[381802530,1756354239802,-480.0,0.00020315,2]
[381802532,1756354239813,-480.0,0.00020315,2]
[381802534,1756354239823,-480.0,0.00020315,2]
[381802536,1756354239832,-461.64425049,0.00020315,2]
[381802538,1756354239842,-480.0,0.00020315,2]
[381802540,1756354239851,-530.63,0.00020315,2]
[381802542,1756354239860,-1729.84,0.00020315,2]
[381802544,1756354239870,-480.0,0.00020315,2]
[381802546,1756354239879,-480.0,0.00020315,2]
[381802548,1756354239889,-985.26,0.00020315,2]
[381802551,1756354239899,-520.91,0.00020315,2]
[381802552,1756354239908,-480.0,0.00020315,2]
[381802555,1756354239918,-480.0,0.00020315,2]
[381802556,1756354239927,-480.0,0.00020315,2]
[381802559,1756354239937,-480.0,0.00020315,2]
[381802560,1756354239947,-480.0,0.00020315,2]
[381802562,1756354239956,-480.0,0.00020315,2]
[381802564,1756354239965,-292.47209949,0.00020315,2]
[381802566,1756354239975,-480.0,0.00020315,2]
[381802568,1756354239984,-480.0,0.00020315,2]
[381802570,1756354239995,-480.0,0.00020315,2]
[381802572,1756354240004,-480.0,0.00020315,2]
[381802574,1756354240014,-480.0,0.00020315,2]
[381802576,1756354240023,-480.0,0.00020315,2]
[381802578,1756354240033,-480.0,0.00020315,2]
[381802580,1756354240043,-805.96,0.00020315,2]
[381802582,1756354240052,-492.70124384,0.00020315,2]
[381802584,1756354240062,-526.39,0.00020315,2]
[381802586,1756354240072,-515.42,0.00020315,2]
[381802588,1756354240081,-480.0,0.00020315,2]
[381802590,1756354240091,-480.0,0.00020315,2]
[381802592,1756354240100,-480.0,0.00020315,2]
[381802594,1756354240110,-232.50566262,0.00020315,2]
[381802596,1756354240119,-900.89,0.00020315,2]
[381802599,1756354240133,-480.0,0.00020315,2]
[381802601,1756354240143,-502.41,0.00020315,2]
[381802603,1756354240152,-480.0,0.00020315,2]
[381802605,1756354240161,-480.0,0.00020315,2]
[381802606,1756354240170,-652.0,0.00020315,2]
[381802608,1756354240179,-480.0,0.00020315,2]
[381802609,1756354240188,-480.0,0.00020315,2]
[381802611,1756354240198,-480.0,0.00020315,2]
[381802613,1756354240207,-480.0,0.00020315,2]
[381802615,1756354240217,-480.0,0.00020315,2]
[381802617,1756354240226,-704.08,0.00020315,2]
[381802619,1756354240235,-482.17171296,0.00020315,2]
[381802621,1756354240247,-480.0,0.00020315,2]
[381802623,1756354240257,-480.0,0.00020315,2]
[381802625,1756354240267,-480.0,0.00020315,2]
[381802627,1756354240276,-480.0,0.00020315,2]
[381802629,1756354240286,-480.0,0.00020315,2]
[381802631,1756354240296,-492.25,0.00020315,2]
[381802633,1756354240306,-480.0,0.00020315,2]
[381802635,1756354240315,-480.0,0.00020315,2]
[381802637,1756354240324,-480.0,0.00020315,2]
[381802639,1756354240333,-168.46396933,0.00020315,2]
[381802641,1756354240343,-873.7,0.00020315,2]
[381802643,1756354240353,-480.0,0.00020315,2]
[381802645,1756354240362,-1077.78,0.00020315,2]
[381802647,1756354240371,-480.0,0.00020315,2]
[381802649,1756354240380,-1166.16,0.00020315,2]
[381802651,1756354240390,-729.37,0.00020315,2]
[381802653,1756354240401,-487.45,0.00020315,2]
[381802655,1756354240411,-480.0,0.00020315,2]
[381802656,1756354240420,-480.0,0.00020315,2]
[381802658,1756354240430,-1020.09,0.00020315,2]
[381802660,1756354240439,-480.0,0.00020315,2]
[381802661,1756354240449,-480.0,0.00020315,2]
[381802662,1756354240458,-480.0,0.00020315,2]
[381802663,1756354240467,-480.0,0.00020315,2]
[381802664,1756354240477,-667.78,0.00020315,2]
[381802665,1756354240486,-1249.6,0.00020315,2]
[381802666,1756354240498,-480.0,0.00020315,2]
[381802667,1756354240507,-480.0,0.00020315,2]
[381802668,1756354240516,-480.0,0.00020315,2]
[381802669,1756354240526,-480.0,0.00020315,2]
[381802670,1756354240535,-480.0,0.00020315,2]
[381802671,1756354240544,-481.16531053,0.00020315,2]
[381802672,1756354240554,-480.0,0.00020315,2]
[381802673,1756354240564,-480.0,0.00020315,2]
[381802674,1756354240573,-480.0,0.00020315,2]
[381802675,1756354240583,-480.0,0.00020315,2]
[381802676,1756354240592,-735.71,0.00020315,2]
[381802677,1756354240601,-480.0,0.00020315,2]
[381802678,1756354240610,-1424.08,0.00020315,2]
[381802679,1756354240624,-480.0,0.00020315,2]
[381802680,1756354240635,-480.0,0.00020315,2]
[381802681,1756354240645,-480.0,0.00020315,2]
[381802682,1756354240654,-612.92,0.00020315,2]
[381802683,1756354240668,-423.40303104,0.00020315,2]
[381802684,1756354240682,-556.02,0.00020315,2]
[381802685,1756354240695,-480.0,0.00020315,2]
[381802686,1756354240705,-480.0,0.00020315,2]
[381802687,1756354240715,-482.09569288,0.00020315,2]
[381802688,1756354240724,-689.47,0.00020315,2]
[381802689,1756354240736,-480.0,0.00020315,2]
[381802690,1756354240746,-480.0,0.00020315,2]
[381802691,1756354240756,-480.0,0.00020315,2]
[381802692,1756354240765,-480.0,0.00020315,2]
[381802693,1756354240775,-480.0,0.00020315,2]
[381802694,1756354240784,-480.0,0.00020315,2]
[381802695,1756354240793,-480.0,0.00020315,2]
[381802696,1756354240803,-1309.28,0.00020315,2]
[381802697,1756354240814,-489.87766863,0.00020315,2]
[381802698,1756354240824,-480.0,0.00020315,2]
[381802699,1756354240833,-500.0,0.00020315,2]
[381802700,1756354240844,-500.0,0.00020315,2]
[381802701,1756354240853,-480.0,0.00020315,2]
[381802702,1756354240863,-480.0,0.00020315,2]
[381802703,1756354240872,-1734.54,0.00020315,2]
[381802704,1756354240881,-480.0,0.00020315,2]
[381802705,1756354240890,-480.0,0.00020315,2]
[381802706,1756354240901,-480.0,0.00020315,2]
[381802707,1756354240910,-182.61862154,0.00020315,2]
[381802708,1756354240919,-480.0,0.00020315,2]
[381802709,1756354240928,-480.0,0.00020315,2]
[381802710,1756354240937,-480.0,0.00020315,2]
[381802711,1756354240947,-480.0,0.00020315,2]
[381802712,1756354240956,-1183.71,0.00020315,2]
[381802713,1756354240966,-687.42,0.00020315,2]
[381802714,1756354240975,-205.68606787,0.00020315,2]
[381802715,1756354240985,-480.0,0.00020315,2]
[381802716,1756354240996,-480.0,0.00020315,2]
[381802717,1756354241005,-480.0,0.00020315,2]
[381802718,1756354241014,-480.0,0.00020315,2]
[381802719,1756354241024,-480.0,0.00020315,2]
[381802720,1756354241034,-480.0,0.00020315,2]
[381802721,1756354241043,-480.0,0.00020315,2]
[381802722,1756354241053,-491.81,0.00020315,2]
[381802723,1756354241062,-480.0,0.00020315,2]
[381802724,1756354241072,-480.0,0.00020315,2]
[381802725,1756354241081,-3725.68,0.00020315,2]
[381802726,1756354241090,-480.0,0.00020315,2]
[381802727,1756354241100,-480.0,0.00020315,2]
[381802728,1756354241109,-480.80054676,0.00020315,2]
[381802729,1756354241119,-480.92830623,0.00020315,2]
[381802730,1756354241128,-480.0,0.00020315,2]
[381802731,1756354241138,-723.49,0.00020315,2]
[381802732,1756354241148,-480.0,0.00020315,2]
[381802733,1756354241352,-480.0,0.00020315,2]
[381802734,1756354241363,-320.01685621,0.00020315,2]
[381802735,1756354241373,-480.0,0.00020315,2]
[381802736,1756354241385,-480.0,0.00020315,2]
[381802737,1756354241394,-480.0,0.00020315,2]
[381802738,1756354241404,-480.0,0.00020315,2]
[381802739,1756354241413,-2085.11,0.00020315,2]
[381802740,1756354241423,-480.0,0.00020315,2]
[381802741,1756354241433,-480.0,0.00020315,2]
[381802742,1756354241443,-480.0,0.00020315,2]
[381802743,1756354241452,-350.28734603,0.00020315,2]
[381802744,1756354241462,-578.86,0.00020315,2]
[381802745,1756354241472,-480.0,0.00020315,2]
[381802746,1756354241482,-978.48,0.00020315,2]
[381802747,1756354241492,-480.0,0.00020315,2]
[381802748,1756354241502,-544.74,0.00020315,2]
[381802749,1756354241511,-480.0,0.00020315,2]
[381802750,1756354241521,-480.0,0.00020315,2]
[381802751,1756354241530,-480.0,0.00020315,2]
[381802752,1756354241539,-480.0,0.00020315,2]
[381802753,1756354241549,-480.0,0.00020315,2]
[381802754,1756354241559,-480.0,0.00020315,2]
[381802755,1756354241569,-480.0,0.00020315,2]
[381802756,1756354241578,-480.0,0.00020315,2]
[381802757,1756354241587,-480.0,0.00020315,2]
[381802758,1756354241598,-627.67,0.00020315,2]
[381802759,1756354241607,-723.6,0.00020315,2]
[381802760,1756354241617,-481.45314978,0.00020315,2]
[381802761,1756354241627,-1088.51,0.00020315,2]
[381802762,1756354241637,-480.0,0.00020315,2]
[381802763,1756354241646,-319.92826557,0.00020315,2]
[381802764,1756354241655,-480.0,0.00020315,2]
[381802765,1756354241665,-480.0,0.00020315,2]
[381802766,1756354241675,-480.0,0.00020315,2]
[381802767,1756354241684,-480.0,0.00020315,2]
[381802768,1756354241693,-480.0,0.00020315,2]
[381802769,1756354241702,-765.18,0.00020315,2]
[381802770,1756354241712,-151.0,0.00020389,2]
[381802771,1756354241721,-151.0,0.00020389,2]
[381802772,1756354241734,-194.72792766,0.00020389,2]
[381802773,1756354241744,-151.0,0.00020389,2]
[381802774,1756354241754,-1000.0,0.00020389,2]
[381802775,1756354241763,-151.0,0.00020389,2]
[381802776,1756354241774,-1000.0,0.00020389,2]
[381802777,1756354241783,-151.0,0.00020389,2]
[381802778,1756354241792,-1020.54066883,0.00020389,2]
[381802779,1756354241803,-151.0,0.00020389,2]
[381802780,1756354241812,-649.05354977,0.00020389,2]
[381802781,1756354241822,-151.0,0.00020389,2]
[381802782,1756354241832,-151.2106036,0.00020389,2]
[381802783,1756354241841,-151.0,0.00020389,2]
[381802784,1756354241850,-151.0,0.00020389,2]
[381802785,1756354241860,-151.0,0.00020389,2]
[381802786,1756354241869,-151.0,0.00020389,2]
[381802787,1756354241878,-151.0,0.00020389,2]
[381802788,1756354241887,-151.0,0.00020389,2]
[381802789,1756354241897,-151.0,0.00020389,2]
[381802790,1756354241906,-151.0,0.000204,3]
[381802791,1756354241915,-500.0,0.000204,2]
[381802792,1756354241926,-500.0,0.000204,2]
[381802793,1756354241935,-480.0,0.00020401,2]
[381802794,1756354241945,-480.0,0.00020401,2]
[381802795,1756354241954,-480.0,0.00020401,2]
[381802796,1756354241963,-480.0,0.00020401,2]
[381802797,1756354241973,-480.0,0.00020401,2]
[381802798,1756354241982,-480.0,0.00020401,2]
[381802799,1756354241993,-480.0,0.00020401,2]
[381802800,1756354242002,-480.0,0.00020401,2]
[381802801,1756354242011,-480.0,0.00020401,2]
[381802802,1756354242021,-495.54,0.00020401,2]
[381802803,1756354242030,-480.0,0.00020401,2]
[381802804,1756354242040,-1061.92,0.00020401,2]
[381802805,1756354242049,-915.09,0.00020401,2]
[381802806,1756354242058,-480.0,0.00020401,2]
[381802807,1756354242068,-682.23,0.00020401,2]
[381802808,1756354242078,-480.0,0.00020401,2]
[381802809,1756354242095,-480.0,0.00020401,2]
[381802810,1756354242104,-3797.27,0.00020401,2]
[381802811,1756354242113,-480.0,0.00020401,2]
[381802812,1756354242123,-480.0,0.00020401,2]
[381802813,1756354242132,-480.0,0.00020401,2]
[381802814,1756354242142,-480.0,0.00020401,2]
[381802815,1756354242151,-480.0,0.00020401,2]
[381802816,1756354242160,-775.36,0.00020401,2]
[381802817,1756354242169,-557.42,0.00020401,2]
[381802818,1756354242179,-480.0,0.00020401,2]
[381802819,1756354242188,-875.49,0.00020401,2]
[381802820,1756354242198,-580.66,0.00020401,2]
[381802821,1756354242207,-722.55,0.00020401,2]
[381802822,1756354242216,-480.0,0.00020401,2]
[381802823,1756354242226,-480.0,0.00020401,2]
[381802824,1756354242235,-480.0,0.00020401,2]
[381802825,1756354242245,-565.32,0.00020401,2]
[381802826,1756354242254,-480.0,0.00020401,2]
[381802827,1756354242263,-480.0,0.00020401,2]
[381802828,1756354242273,-923.3,0.00020401,2]
[381802829,1756354242283,-480.0,0.00020401,2]
[381802830,1756354242292,-480.0,0.00020401,2]
[381802831,1756354242303,-480.0,0.00020401,2]
[381802832,1756354242312,-1355.11,0.00020401,2]
[381802833,1756354242322,-740.55,0.00020401,2]
[381802834,1756354242331,-946.04,0.00020401,2]
[381802835,1756354242341,-509.1,0.00020401,2]
[381802836,1756354242350,-1204.2,0.00020401,2]
[381802837,1756354242359,-623.1,0.00020401,2]
[381802838,1756354242369,-480.0,0.00020401,2]
[381802839,1756354242378,-480.0,0.00020401,2]
[381802840,1756354242388,-480.0,0.00020401,2]
[381802841,1756354242397,-480.0,0.00020401,2]
[381802842,1756354242407,-480.0,0.00020401,2]
[381802843,1756354242416,-480.0,0.00020401,2]
[381802844,1756354242427,-515.48,0.00020401,2]
[381802845,1756354242438,-603.7,0.00020401,2]
[381802846,1756354242449,-480.0,0.00020401,2]
[381802847,1756354242459,-480.0,0.00020401,2]
[381802848,1756354242470,-480.0,0.00020401,2]
[381802849,1756354242481,-631.8,0.00020401,2]
[381802850,1756354242493,-720.34,0.00020401,2]
[381802851,1756354242503,-480.0,0.00020401,2]
[381802852,1756354242513,-506.25,0.00020401,2]
[381802853,1756354242522,-480.0,0.00020401,2]
[381802854,1756354242532,-480.0,0.00020401,2]
[381802855,1756354242541,-480.0,0.00020401,2]
[381802856,1756354242551,-480.0,0.00020401,2]
[381802857,1756354242560,-618.0,0.00020401,2]
[381802858,1756354242570,-3548.39,0.00020401,2]
[381802860,1756354242579,-913.31,0.00020401,2]
[381802861,1756354242589,-480.0,0.00020401,2]
[381802862,1756354242599,-480.0,0.00020401,2]
[381802864,1756354242610,-480.0,0.00020401,2]
[381802865,1756354242620,-480.0,0.00020401,2]
[381802866,1756354242629,-661.84,0.00020401,2]
[381802868,1756354242638,-480.0,0.00020401,2]